Cogmind - Beta 16 @@@ ROGUE MODE // 2026.01.20 @ 18:51:59 Player: Tubby Watkins Result: Self-destructed Performance ------------- Evolutions (2) 1000 Regions Visited (7) 1400 Robots Destroyed (88) 440 Value Destroyed (2444) 2444 Prototype IDs (29) 580 Alien Tech Used (0) 0 Bonus (98) 98 TOTAL SCORE: 5962 Bonus ------- High Alert Combat Kills 13 Follower Combat Kills 85 Cogmind --------- Core Integrity 200/550 Matter 81/300 Energy 140/140 System Corruption 0% Temperature Cool (22) Movement Treading (320) Ox2 Location -8/Materials Parts ------- > --- POWER (1) -------- Light Deuterium Engine > --- PROPULSION (4) --- Light Treads > --- UTILITY (4) ------ High-capacity Storage Unit Structural Scanner ECM Suite Improved Light Armor Plating > --- WEAPON (2) ------- Flak Cannon Mini Grenade Launcher > --- INVENTORY (20) --- Light Treads Light Treads VTOL Module VTOL Module Faulty Improved Flight Unit Improved Flight Unit Cesium-ion Thruster Cesium-ion Thruster Cesium-ion Thruster Datajack Makeshift Sword Peak State ------------ > --- POWER ------------ Light Deuterium Engine > --- PROPULSION ------- Light Treads Light Treads Improved Treads Advanced Treads > --- UTILITY ---------- High-capacity Storage Unit Structural Scanner ECM Suite Hardened Light Armor Plating > --- WEAPON ----------- YOLO Cannon > --- INVENTORY -------- Light Deuterium Engine Light Treads Light Treads Light Treads VTOL Module VTOL Module Improved Flight Unit Improved Flight Unit Cesium-ion Thruster Cesium-ion Thruster Cesium-ion Thruster Improved Light Armor Plating Flak Cannon Mini Grenade Launcher Datajack Makeshift Sword [Rating: 38] Favorites ----------- Power Improved Ion Engine Engine Improved Ion Engine Propulsion Light Treads Treads Light Treads Leg Aluminum Leg Utility Structural Scanner Device Structural Scanner Storage High-capacity Storage Unit Protection Medium Armor Plating Weapon Flak Cannon Energy Cannon YOLO Cannon Ballistic Gun Light Assault Rifle Ballistic Cannon Flak Cannon Launcher Grenade Launcher Slashing Weapon Katana Build | -11 -10 -10 -9 -9 -9 -8 -8 ------- Run | Yrd Mat Min Mat Min Exi Min Mat Slots Evolved 4 | . . . 2 . . . 2 Power . | . . . . . . . . Propulsion 2 | . . . 1 . . . 1 Utility 2 | . . . 1 . . . 1 Weapon . | . . . . . . . . Parts Attached 65 | 7 11 7 30 1 1 2 6 Power 13 | 1 3 3 4 . . 1 1 Engine 13 | 1 3 3 4 . . 1 1 Core . | . . . . . . . . Reactor . | . . . . . . . . Propulsion 20 | 2 3 1 12 . . 1 1 Treads 18 | . 3 1 12 . . 1 1 Leg 2 | 2 . . . . . . . Wheel . | . . . . . . . . Hover . | . . . . . . . . Flight . | . . . . . . . . Utility 15 | 2 2 1 6 1 . . 3 Device 5 | 1 1 1 1 . . . 1 Storage 4 | 1 1 . 2 . . . . Processor . | . . . . . . . . Hackware . | . . . . . . . . Protection 6 | . . . 3 1 . . 2 Artifact . | . . . . . . . . Weapon 17 | 2 3 2 8 . 1 . 1 Energy Gun . | . . . . . . . . Energy Cannon 1 | . . . . . 1 . . Ballistic Gun 6 | 2 . . 4 . . . . Ballistic Cannon 7 | . 3 1 3 . . . . Launcher 2 | . . 1 . . . . 1 Special Weapon . | . . . . . . . . Impact Weapon . | . . . . . . . . Slashing Weapon 1 | . . . 1 . . . . Piercing Weapon . | . . . . . . . . Special Melee Weapon . | . . . . . . . . Unidentified Prototypes 1 | . . 1 . . . . . Parts Lost 14 | . . 3 3 . . 1 7 Power 2 | . . 1 . . . . 1 Propulsion 5 | . . 1 . . . . 4 Utility 3 | . . 1 . . . 1 1 Weapon 4 | . . . 3 . . . 1 Highest Loss Streak 7 | . . 2 1 . . 1 7 To Critical Strikes . | . . . . . . . . Average Backups 16 | 3 12 14 15 19 20 18 14 Power 1 | . 1 1 1 1 1 1 . Propulsion 8 | 1 3 6 8 12 12 10 9 Utility 2 | . 3 2 2 2 3 3 . Weapon 3 | . 3 3 2 3 3 3 2 Tool/Special . | . . . . . . . . Unused Backups 24 | . 3 1 8 . 1 2 9 Power 3 | . . . 2 . . 1 . Propulsion 14 | . . . 6 . . 1 7 Utility 2 | . 2 . . . . . . Weapon 4 | . 1 1 . . 1 . 1 Tool/Special 1 | . . . . . . . 1 Average Slot Usage (%) 95 | . 99 97 99 100 91 87 86 Engine 11 | . 13 13 11 11 11 11 8 Treads 30 | . 24 26 33 33 33 33 31 Device 12 | . 14 13 13 11 11 11 17 Storage 11 | . 14 14 11 11 11 11 9 Protection 7 | . . . 8 11 11 10 8 Energy Cannon 3 | . . . . . 7 11 7 Ballistic Gun 2 | . 6 . 3 . . . . Ballistic Cannon 13 | . 21 22 16 22 6 . 1 Peak Build Rating 38 | 7 8 14 22 21 35 36 38 Average Rating 21 | 4 7 11 19 20 30 34 32 On Entrance 16 | . 7 8 8 21 21 35 32 Avg Prop Armor Cover (%) 9 | . 18 . . . . . 6 Naked Turns . | . . . . . . . . Heaviest Build 73 | 13 30 37 67 67 73 73 71 Greatest Support 85 | 20 40 40 66 62 62 62 85 Greatest Overweight (x) 4 | 1 4 1 1 1 1 1 2 Average Overweight (x) . | . . . . 1 1 1 . Largest Inventory Capacity 20 | 8 15 15 20 20 20 20 20 Average Capacity 17 | 7 13 15 16 20 20 20 20 Most Carried 20 | 5 15 15 20 20 20 20 17 Average Carried 16 | 3 12 14 15 19 19 18 14 Final Capacity 20 | 8 15 15 20 20 20 20 20 Final Carried 20 | 5 15 15 20 20 20 18 11 Class Distribution -------------------- 51% | Scavenger-Mutant 46% | Mutant Dominant Class ---------------- Mutant | -10/Materials Mutant | -10/Mines Mutant | -9/Materials Scavenger-Mutant | -9/Mines Scavenger-Mutant | -9/Exiles Scavenger-Mutant | -8/Mines Scavenger-Mutant | -8/Materials Resources | -11 -10 -10 -9 -9 -9 -8 -8 ----------- Run | Yrd Mat Min Mat Min Exi Min Mat Matter Collected 2436 | 286 535 291 1126 158 . 40 . Remotely . | . . . . . . . . Salvage Created 2220 | 38 455 56 1104 91 . 169 307 Parts 166 | 8 28 . 88 4 . 14 24 Haulers Intercepted 5 | . 2 . 2 . . . 1 Recyclers Shooed . | . . . . . . . . Parts Field Recycled . | . . . . . . . . Retrieved Matter . | . . . . . . . . Parts Self-Destructed . | . . . . . . . . Prevented . | . . . . . . . . Parts Restored . | . . . . . . . . Kills | -11 -10 -10 -9 -9 -9 -8 -8 ------- Run | Yrd Mat Min Mat Min Exi Min Mat Combat Hostiles Destroyed 74 | . 11 11 30 4 . 9 9 Guns 11 | . 3 . 8 . . . . Cannons 43 | . 8 3 22 4 . 2 4 AOE 20 | . . 8 . . . 7 5 Classes Destroyed 14 | 1 7 1 4 . . . 1 Worker 1 | . 1 . . . . . . Builder 5 | . . . 1 . . 1 3 Tunneler 2 | 2 . . . . . . . Hauler 5 | . 2 . 2 . . . 1 Recycler 1 | . 1 . . . . . . Operator 4 | . 2 . 2 . . . . Watcher 7 | . 2 . 4 . . . 1 Swarmer 16 | . 3 . 7 . . 6 . Grunt 30 | . 8 . 10 2 . 3 7 Brawler 1 | . . . 1 . . . . Duelist 4 | . . . 2 2 . . . Sentry 11 | . . . 10 . . . 1 Hunter 1 | . . . . . . . 1 Assembled 11 | . . 11 . . . . . Best Kill Streak 8 | 1 3 8 4 2 . 4 6 Combat Bots Only 8 | . 3 8 4 2 . 4 3 Max Kills in Single Turn 4 | 1 1 2 2 1 . 4 2 Gunslinging . | . . . . . . . . Exploded 4 | . . 2 . . . 4 2 Melee . | . . . . . . . . Uniques/NPCs Destroyed . | . . . . . . . . Combat | -11 -10 -10 -9 -9 -9 -8 -8 -------- Run | Yrd Mat Min Mat Min Exi Min Mat Hostile Shots Fired 314 | . 45 48 137 8 . 20 56 Missed 85 | . 17 14 29 2 . 5 18 Hits 229 | . 28 34 108 6 . 15 38 Melee 15 | . . 7 5 3 . . . Projectile 214 | . 28 27 103 3 . 15 38 Critical Strikes 8 | . 1 . 4 1 . . 2 Part Disruptions 1 | . . . . . . . 1 Damage Taken 3790 | . 344 741 1484 138 . 314 769 Core 500 | . 47 92 142 . . 135 84 Absorbed by Shields . | . . . . . . . . Core Remaining (%) 58 | 100 . 44 . . . 30 . Volleys Fired 200 | 8 58 17 90 8 . 4 15 Largest 2 | 2 2 2 2 2 . 1 2 Hottest 100 | 40 60 60 74 74 . 100 100 Shots Fired 383 | 16 115 33 176 16 . 4 23 Gun 120 | 16 28 . 76 . . . . Cannon 241 | . 87 22 98 16 . 4 14 Launcher 22 | . . 11 2 . . . 9 Special . | . . . . . . . . Kinetic 352 | 16 115 22 174 16 . . 9 Thermal 9 | . . . . . . 4 5 Explosive 22 | . . 11 2 . . . 9 Electromagnetic . | . . . . . . . . Robot Hit Streak 17 | 5 9 8 17 7 . 4 4 Robot Miss Streak 12 | 2 4 3 12 6 . 1 7 Penetration Max . | . . . . . . . . Secondary Targets . | . . . . . . . . Shots Hit Robots 259 | 10 66 20 129 15 . 3 16 Core Hits 183 | 4 23 16 84 17 . 11 28 Critical Kills . | . . . . . . . . Critical Parts Destroyed . | . . . . . . . . Critical Strikes 2 | . 1 . 1 . . . . Blast 1 | . 1 . . . . . . Sever 1 | . . . 1 . . . . Melee Attacks 6 | . . . 6 . . . . Impact . | . . . . . . . . Slashing 6 | . . . 6 . . . . Piercing . | . . . . . . . . Sneak Attacks 1 | . . . 1 . . . . Combat Hostiles . | . . . . . . . . Follow-up Attacks . | . . . . . . . . Damage Inflicted 6708 | 93 1010 667 2253 289 . 951 1445 Guns 1056 | 93 121 . 842 . . . . Cannons 3453 | . 889 224 1213 289 . 349 489 Explosions 2109 | . . 443 108 . . 602 956 Melee 90 | . . . 90 . . . . Ramming . | . . . . . . . . Kinetic 3847 | 93 1010 224 2055 289 . . 176 Thermal 1739 | . . . . . . 951 788 Explosive 1032 | . . 443 108 . . . 481 Electromagnetic . | . . . . . . . . Impact . | . . . . . . . . Slashing 90 | . . . 90 . . . . Piercing . | . . . . . . . . Highest Corruption 3 | . 1 3 . . . . . Average Corruption 1 | . 1 1 . . . . . Corruption Purged . | . . . . . . . . Corruption Blocked . | . . . . . . . . Effects 9 | . 8 1 . . . . . Matter Fused 3 | . 3 . . . . . . Heat Flow Errors 1 | . 1 . . . . . . Energy Discharges 1 | . 1 . . . . . . Data Loss (minor) 2 | . 1 1 . . . . . Alerts 1 | . 1 . . . . . . Weapon Failures 1 | . 1 . . . . . . Overload Shots . | . . . . . . . . Overflow Damage 112 | . 14 21 50 . . 5 22 Projectiles 32 | . 14 . . . . 5 13 Explosions 51 | . . 21 21 . . . 9 Melee 29 | . . . 29 . . . . Knockbacks 46 | . 14 3 16 9 . . 4 Impact . | . . . . . . . . Kinetic 45 | . 13 3 16 9 . . 4 Secondary 1 | . 1 . . . . . . Self-Inflicted Damage 488 | . . 154 39 . . 119 176 Shots 12 | . . 6 1 . . 2 3 Rammed . | . . . . . . . . Targets Rammed . | . . . . . . . . Kicked . | . . . . . . . . Crushed . | . . . . . . . . Highest Temperature 218 | . 218 20 57 72 . 57 103 Average Temperature 26 | . 51 17 12 34 . 28 30 Received Heat Transfer 1007 | . 177 20 402 21 . 81 306 Siege Activations . | . . . . . . . . Martial Activations . | . . . . . . . . Shielding Activations . | . . . . . . . . Robots Disrupted . | . . . . . . . . Combat Hostiles . | . . . . . . . . Robots Corrupted . | . . . . . . . . Combat Hostiles . | . . . . . . . . Parts Fried . | . . . . . . . . Impact Corruptions . | . . . . . . . . Robots Melted . | . . . . . . . . Combat Hostiles . | . . . . . . . . Parts Melted 3 | . . . . . . 1 2 Heat Transferred 1620 | . . . . . . 800 820 Parts Sabotaged . | . . . . . . . . Parts Stolen . | . . . . . . . . Parts Stripped . | . . . . . . . . Power Chain Reactions . | . . . . . . . . Alert | -11 -10 -10 -9 -9 -9 -8 -8 ------- Run | Yrd Mat Min Mat Min Exi Min Mat Maximum Alert Level 2 | . . . 2 1 . . 1 Low Security (%) 74 | 100 100 100 31 94 . 100 97 Level 1 19 | . . . 50 5 . . 2 Level 2 6 | . . . 17 . . . . Level 3 . | . . . . . . . . Level 4 . | . . . . . . . . Level 5 . | . . . . . . . . High Security . | . . . . . . . . Max Security . | . . . . . . . . Peak Influence 435 | 5 139 18 435 213 . 163 295 Initial 148 | . . 18 . 148 . . 24 Average 125 | . 54 2 246 129 . 40 43 Influence Increases 2362 | 10 404 35 997 208 . 273 435 Destroy 0b10 Robot/C 1320 | . 220 . 600 140 . 180 180 Destroy 0b10 Robot/NC 125 | 10 40 . 45 . . 5 25 Destroy Leader 354 | . 58 . 192 30 . 30 44 Allied During Kill 8 | . . . . 8 . . . Successful Hack 23 | . 6 . 17 . . . . Disable Machine 150 | . 30 . 45 . . . 75 Destroy Structure 217 | . 5 35 23 . . 43 111 Partial Spotted 15 | . . . . 15 . . . Lose Combat Pursuer 150 | . 45 . 75 15 . 15 . Influence Decreases 2067 | 10 357 82 614 525 66 211 202 Entered New Map 368 | . . 29 . 235 66 . 38 Time Decay 1578 | 10 357 52 584 270 . 211 94 Lost Part 101 | . . 1 30 . . . 70 Lost Ally 20 | . . . . 20 . . . Squads Dispatched 8 | . 3 . 4 . . . 1 Investigation 2 | . 1 . 1 . . . . Extermination . | . . . . . . . . Reinforcement 6 | . 2 . 3 . . . 1 Assault . | . . . . . . . . Garrison . | . . . . . . . . Intercept . | . . . . . . . . Searches Triggered . | . . . . . . . . Construction Impeded 1 | . . . . . . . 1 Haulers Reinforced . | . . . . . . . . Active Scanning Responses . | . . . . . . . . Cargo Convoy Interrupts . | . . . . . . . . Stealth | -11 -10 -10 -9 -9 -9 -8 -8 --------- Run | Yrd Mat Min Mat Min Exi Min Mat Distress Signals 6 | . 1 1 3 . . . 1 Communications Jammed . | . . . . . . . . Distress Signals . | . . . . . . . . Times Spotted 108 | . 24 11 47 7 . 10 9 Peak Tracking Total 8 | . 3 4 8 3 . 4 5 Tactical Retreats 8 | . 2 . 4 1 . 1 . Traps | -11 -10 -10 -9 -9 -9 -8 -8 ------- Run | Yrd Mat Min Mat Min Exi Min Mat Traps Triggered 5 | . 3 . 2 . . . . Indirectly . | . . . . . . . . Trap Hack Attempts . | . . . . . . . . Triggered . | . . . . . . . . Disarmed . | . . . . . . . . Reprogrammed . | . . . . . . . . Reused . | . . . . . . . . Traps Extracted . | . . . . . . . . Installed . | . . . . . . . . Triggered . | . . . . . . . . Machines | -11 -10 -10 -9 -9 -9 -8 -8 ---------- Run | Yrd Mat Min Mat Min Exi Min Mat Machines Disabled 10 | . 2 . 3 . . . 5 Max in Single Turn 2 | . 1 . 1 . . . 2 Machines Repaired . | . . . . . . . . Machines Dismantled . | . . . . . . . . Machines Sabotaged . | . . . . . . . . Overloaded Fab Kills . | . . . . . . . . Hacking | -11 -10 -10 -9 -9 -9 -8 -8 --------- Run | Yrd Mat Min Mat Min Exi Min Mat Machines Accessed 16 | . 4 2 8 . 2 . . Terminals 13 | . 4 1 8 . . . . Fabricators . | . . . . . . . . Repair Stations . | . . . . . . . . Recycling Units . | . . . . . . . . Scanalyzers . | . . . . . . . . Garrison Access . | . . . . . . . . Total Hacks 26 | . 7 3 12 . 4 . . Successful 11 | . 2 1 4 . 4 . . Failed 15 | . 5 2 8 . . . . Catastrophic 2 | . 2 . . . . . . Database Lockouts . | . . . . . . . . Manual 19 | . 6 2 10 . 1 . . Terminals 21 | . 7 2 12 . . . . Fabricators . | . . . . . . . . Repair Stations . | . . . . . . . . Recycling Units . | . . . . . . . . Scanalyzers . | . . . . . . . . Garrison Access . | . . . . . . . . Terminal Hacks 10 | . 2 1 3 . 4 . . Record 3 | . . . . . 3 . . Prototype ID Bank 3 | . 1 . 2 . . . . Open Door 1 | . . 1 . . . . . Dispatch Records 1 | . 1 . . . . . . Hauler Manifests 1 | . . . 1 . . . . Proto ID Catalog 1 | . . . . . 1 . . Fabricator Hacks . | . . . . . . . . Repair Station Hacks . | . . . . . . . . Recycling Unit Hacks . | . . . . . . . . Scanalyzer . | . . . . . . . . Garrison Access Hacks . | . . . . . . . . Unauthorized Hacks 1 | . . . 1 . . . . Terminals 1 | . . . 1 . . . . Operators 1 | . . . 1 . . . . Fabricators . | . . . . . . . . Repair Stations . | . . . . . . . . Recycling Units . | . . . . . . . . Scanalyzers . | . . . . . . . . Garrison Access . | . . . . . . . . Data Cores Recovered . | . . . . . . . . Used . | . . . . . . . . Hacking Detections 9 | . 3 1 5 . . . . Full Trace Events 2 | . 2 . . . . . . Feedback Events . | . . . . . . . . Feedback Blocked . | . . . . . . . . Robot Schematics Acquired . | . . . . . . . . Robots Built . | . . . . . . . . Authchips . | . . . . . . . . Time . | . . . . . . . . Total Robot Build Rating . | . . . . . . . . Part Schematics Acquired . | . . . . . . . . Parts Built . | . . . . . . . . Authchips . | . . . . . . . . Time . | . . . . . . . . Total Part Build Rating . | . . . . . . . . Part Studies Acquired . | . . . . . . . . Parts Repaired . | . . . . . . . . Time . | . . . . . . . . Parts Recycled . | . . . . . . . . Recycled Matter . | . . . . . . . . Retrieved Matter . | . . . . . . . . Retrieved Components . | . . . . . . . . Parts Scanalyzed . | . . . . . . . . Part Schematics Acquired . | . . . . . . . . Parts Damaged . | . . . . . . . . Bothacking | -11 -10 -10 -9 -9 -9 -8 -8 ------------ Run | Yrd Mat Min Mat Min Exi Min Mat Used RIF Installer . | . . . . . . . . Robots Hacked . | . . . . . . . . Non-combat . | . . . . . . . . Combat . | . . . . . . . . Robot Hacks Applied . | . . . . . . . . Relay Couplers Released . | . . . . . . . . Fabnet Peak Effective % . | . . . . . . . . Robots Rewired . | . . . . . . . . Allies Hacked . | . . . . . . . . Hacks Repelled . | . . . . . . . . Allies | -11 -10 -10 -9 -9 -9 -8 -8 -------- Run | Yrd Mat Min Mat Min Exi Min Mat Total Allies 3 | . . . . 3 . . . Largest Group 3 | . . . . 3 2 2 . Highest-Rated Group 40 | . . . . 40 32 32 . Highest-Rated Ally 16 | . . . . 16 16 16 . Total Orders . | . . . . . . . . Ally Attacks 17 | . . 3 . 10 . 4 . Total Damage 171 | . . 8 . 137 . 26 . Kills 3 | . . . . 3 . . . Allies Corrupted . | . . . . . . . . Allies Melted . | . . . . . . . . Intel | -11 -10 -10 -9 -9 -9 -8 -8 ------- Run | Yrd Mat Min Mat Min Exi Min Mat Active Infowar (turns) 7397 | 10 1548 141 2332 595 1394 980 397 Structural 5697 | . . . 2331 595 1394 980 397 Seismic 2262 | 10 1548 141 563 . . . . ECM 1 | . . . . . . . 1 Robot Analysis Total . | . . . . . . . . Derelict Logs Recovered . | . . . . . . . . Drone Launches 3 | . . 3 . . . . . Drone Recoveries 3 | . . 3 . . . . . Exploration | -11 -10 -10 -9 -9 -9 -8 -8 ------------- Run | Yrd Mat Min Mat Min Exi Min Mat Turns Passed 7762 | 121 1548 395 2332 595 1394 980 397 Spaces Moved 3536 | 73 789 198 1059 237 589 395 196 Core 24 | 15 9 . . . . . . Treads 3368 | . 694 198 1059 237 589 395 196 Legs 144 | 58 86 . . . . . . Wheels . | . . . . . . . . Hover . | . . . . . . . . Flight . | . . . . . . . . Fastest Speed 50 | 50 120 160 145 235 235 235 152 Average Speed 189 | 114 156 164 172 235 235 239 169 Slowest Speed 320 | 120 250 240 235 235 235 240 320 Overloaded Moves . | . . . . . . . . Propulsion Burnouts . | . . . . . . . . Robots Hopped . | . . . . . . . . Potential Cave-ins . | . . . . . . . . Cave-ins Triggered . | . . . . . . . . Exploration Rate (%) 62 | 5 97 59 98 43 90 90 17 Regions Visited 7 Branch Regions 4 Pre-discovered Areas 2 | . . 1 . . 1 . . Known Exits Taken . | . . . . . . . . Unknown Exits Taken 7 | 1 1 1 1 1 1 1 . Scrap Searched 2 | . . . . 1 . 1 . Spaces Dug 10 | . . 7 3 . . . . Terrain Destroyed 261 | . . 54 20 . . 59 128 Melee 3 | . . . 3 . . . . Projectile 3 | . . . . . . 1 2 AOE 255 | . . 54 17 . . 58 126 Terrain Rammed . | . . . . . . . . Walls Destroyed . | . . . . . . . . Machines Disabled . | . . . . . . . . Actions | -11 -10 -10 -9 -9 -9 -8 -8 --------- Run | Yrd Mat Min Mat Min Exi Min Mat Total 4225 | 94 991 235 1400 260 601 421 223 Wait 306 | 1 103 5 167 14 . 13 3 Move 3529 | 72 788 197 1058 236 588 394 196 Hop . | . . . . . . . . Pick Up 45 | 6 14 3 18 1 2 1 . Fast Attach 13 | 6 3 2 1 . 1 . . Attach 19 | 1 1 2 4 1 . 2 8 Detach 3 | . 1 . . . . 2 . Swap 50 | . 12 5 31 . . 1 1 Drop 48 | . 11 4 25 . 4 4 . Fire 200 | 8 58 17 90 8 . 4 15 Melee 6 | . . . 6 . . . . Ram . | . . . . . . . . Kick . | . . . . . . . . Crush . | . . . . . . . . Escape Stasis . | . . . . . . . . Rewire 6 | . . . . . 6 . . Trap . | . . . . . . . . Miscellaneous . | . . . . . . . . Route ------- -11/Scrapyard -10/Materials (discovered 5 exits: *Mat x3 / *Min x2) -10/Mines -9/Materials (discovered 5 exits: [*Mat x3] / [*Min x2]) -9/Mines -9/Exiles (discovered 2 exits: [*Min x2]) -8/Mines (discovered 2 exits: [*Mat x2]) -8/Materials History --------- Turn | Location | Event 6 | -11/Scrapyard | Discovered new exit (range 15) 122 | -11/Scrapyard | Entered Materials 330 | -10/Materials | Build established: Mutant 340 | -10/Materials | Discovered new exit (range 16) 860 | -10/Materials | Discovered new exit (range 10) 994 | -10/Materials | Discovered new exit (range 10) 1495 | -10/Materials | Discovered new exit (range 15) 1636 | -10/Materials | Discovered new exit (range 14) 1670 | -10/Materials | Entered Mines 1671 | -10/Mines | Learned location of Storage (-7) 1703 | -10/Mines | Found the Drone Emporium 1719 | -10/Mines | Found Prototype Device 1719 | -10/Mines | Identified Splice Drone Bay 1753 | -10/Mines | Assembled infested the area 1802 | -10/Mines | Found a Scrap Suit stashed away for nefarious purposes 1960 | -10/Mines | Core integrity fell below 50% 1983 | -10/Mines | Destroyed 8 combat bots 2009 | -10/Mines | Discovered new exit (range 10) 2065 | -10/Mines | Entered Materials 2065 | -9/Materials | Evolved 2 slots: Propulsion x1, Utility x1 2436 | -9/Materials | Discovered new exit (range 6) 2571 | -9/Materials | Discovered new exit (range 14) 3271 | -9/Materials | Discovered new exit (range 16) 3507 | -9/Materials | Discovered new exit (range 10) 4063 | -9/Materials | Discovered new exit (range 11) 4200 | -9/Materials | Build established: Scavenger-Mutant 4397 | -9/Materials | Entered Mines 4398 | -9/Mines | Met a Derelict bent on vengeance 4806 | -9/Mines | Assisted by bots powering up and referring to "LRC-V3" 4980 | -9/Mines | Deemed a non-threat by the Exiles lab entrance 4980 | -9/Mines | Discovered new exit (range 5) 4992 | -9/Mines | Entered Exiles 4992 | -9/Exiles | Found Exiles lab destroyed 4992 | -9/Exiles | Accompanied by 2 allies 5032 | -9/Exiles | Discovered new exit (range 15) 5393 | -9/Exiles | Opened EX-Vault 5411 | -9/Exiles | Found YOLO Cannon 5570 | -9/Exiles | Learned location of Zion (-6) 6271 | -9/Exiles | Discovered new exit (range 14) 6386 | -9/Exiles | Entered Mines 6386 | -8/Mines | Accompanied by 2 allies 6464 | -8/Mines | Found DCF Scrap (15 items) 6661 | -8/Mines | Core integrity fell below 50% 7028 | -8/Mines | Discovered new exit (range 9) 7356 | -8/Mines | Discovered new exit (range 5) 7366 | -8/Mines | Entered Materials 7366 | -8/Materials | Evolved 2 slots: Propulsion x1, Utility x1 7670 | -8/Materials | YOLO Cannon suddenly exploded 7671 | -8/Materials | Core integrity fell below 50% 7736 | -8/Materials | Lost 7 parts (1p4n1u1w) 7763 | -8/Materials | Self-destructed Last Messages --------------- 07736_ W-25 Informer sends out distress signal. 07736_ U-05 Engineer lays Concrete. 07738_ R-06 Scavenger collects Terrain Scan Processor. 07738_ U-05 Engineer lays Concrete. 07746_ The unstable cave ceiling collapses. 07746_ U-05 Engineer lays Concrete. 07748_ Repair Station disabled. 07748_ U-05 Engineer destroyed. 07748_ W-25 Informer destroyed. 07754_ Y-45 Defender destroyed. 07755_ The unstable cave ceiling collapses. 07757_ G-47 Trooper knocked back. 07758_ Fusion Modulator explodes. 07758_ G-47 Trooper destroyed. 07758_ K-01 Serf collects debris. 07759_ U-05 Engineer builds a Wall. 07760_ The unstable cave ceiling collapses. 07760_ G-47 Trooper destroyed. 07760_ U-05 Engineer destroyed. 07762_ The unstable cave ceiling collapses. Map ----- +----------------------------------------------------+ | ????????????????????????????? !# ? ###### | | ?????????????????????????? ##?"[ # "??? # | | ??????????????????????## ##?Y # "??? # | | ??????????????????## ## #"" = ???? # | | ??????????????????## # # == ???? #""" | | ????????????????#### # * # "" // ???? #""" | | ????????????????#### [% % # "" =// #????##""" | | ???????????????? = ?"""! ##????## | | ??????????????????## # ? #????##""" | | ??????????????????## [^[= ######+###????##""" | | ????????????? ###?## [^[= ##### ##?????##""" | | ????????????? ###### [r= #### ######### | | ????????????? ### ######## ###########+## | | ?????????????? | | ????????????? k = ^^ | | ???????????? %a %! ^ | | ????????????#### | ##### ############## | | ???????????? ; % *%= #### ############## | | ??????????????## ! # ############## | | ??????????????## # # ############ | | ??????????????## ### ### | | ??????????????##;; = ## ### | | ??????????????##; ## ### | | ??????????????### #### ### | | ???????????????##; # [ ## ### | | ???????????????### @ ### ### | | ????????????????####+###### # # ######+##### | | ???????????????? ###### ## | | ?????????????????????????## # | | ?????????????????????????## r # | | ?????????????????????????############+########### | | ?????????????????????????########## ######### | | ?????????????????????????????????## """ + | | ?????????????????????????????????## "Y" ######### | | ?????????????????????????????????## ######### | | ?????????????????????????????????## ##??????? | | ?????????????????????????????????## ##??????? | | ?????????????????????????????????##########??????? | | | | | | | | | | | | | | | | | | | | | | | | | +----------------------------------------------------+ Best States ------------- Heat Dissipation 31 Energy Generation 14 Energy Capacity 265 Matter Stores 300 Matter Capacity 300 Sight Range 16 Terrain Scan Density 10 Armor Coverage 225 Evasion (%) 55 Recoil Reduction 4 Item Schematics ----------------- None Robot Schematics ------------------ None Fabricated ------------ Nothing Repaired ---------- Nothing Studied --------- None Alien Tech Used ----------------- None Achievements -------------- Luggage Code YOLO Challenges ------------ None Game ------ Seed MassDiametricScrap Manual? 0 Play Time 01:06:00 Cumulative 12.5 hours Start 2026.01.20 @ 15:24:30 End 2026.01.20 @ 18:51:59 Sessions 2 Manual Loads 0 Difficulty Rogue Special Mode None Game No. 17 Rogue 17 Adventurer 0 Explorer 0 Win Type - Total 0 Types 0/0/0/0/0/0/0/0/0/0 Lore% 12 Gallery% 14 Achievement% 13 Wizard Run 0 Options --------- Layout 0 ASCII 1 Keyboard 1 Movement Vi Keybinds 0 Fullscreen 1 Font 20/X11 Map View 66x50 Zoom Use 0% Tactical HUD 1 Map Filters NONE Filters NONE Steam 1 RUN: 75164303-0a6e-4833-a836-26dbf1bf28c0